bitfinex-derivatives/quotes_ETHF0:USTF0_20250804
["timestamp","ask_amount","ask_price","bid_price","bid_amount"]
[1754318542351,21.1779,3644.8,3644.7,4.46576]
[1754318542551,19.49,3644.8,3644.7,4.46576]
[1754318542757,19.68235473,3644.8,3644.7,4.46576]
[1754318542960,20.69755473,3644.8,3644.7,4.46576]
[1754318543257,23.15485473,3644.8,3644.7,3.24216]
[1754318543467,24.02293716,3644.8,3644.7,0.54866]
[1754318543653,24.76978792,3644.8,3644.7,0.54866]
[1754318544161,24.57745076,3644.8,3644.7,0.54866]
[1754318544357,24.76977685,3644.8,3644.7,3.91936]
[1754318544656,24.57745076,3644.8,3644.7,0.54866]
[1754318544848,24.76974685,3644.8,3644.7,0.54866]
[1754318545562,23.17244685,3644.8,3644.7,3.91936]
[1754318545761,0.19229609,3644.8,3644.7,4.45036]
[1754318545956,20.42612445,3644.9,3644.7,2.28526]
[1754318546155,21.1749,3644.9,3644.8,3.9017]
[1754318546357,0.93908485,3644.9,3644.8,3.9017]
[1754318546560,21.36617237,3645.2,3645.1,4.4503]
[1754318546858,21.1739,3645.2,3645.1,4.4503]
[1754318547055,1.6879,3645.2,3645.1,4.4503]
[1754318547257,2.2672,3645.2,3645.1,4.4503]
[1754318547964,2.7433,3645.2,3645.1,4.4503]
[1754318548163,3.4725,3645.2,3645.1,4.4503]
[1754318548556,2.7433,3645.2,3645.1,4.4503]
[1754318549966,2.2672,3645.2,3645.1,4.4503]
[1754318550159,1.6879,3645.2,3645.1,3.9193]
[1754318550360,1.6879,3645.2,3645.1,4.4503]
[1754318550964,19.483,3645.6,3645.4,4.45026]
[1754318551160,4.223,3645.8,3645.4,4.45026]
[1754318551161,0.19209382,3645.5,3645.4,4.45026]
[1754318551468,1.0152,3645.8,3645.7,3.9017]
[1754318551761,1.6879,3645.8,3645.7,3.9017]
[1754318551965,3.2078,3646.3,3645.9,3.9017]
[1754318552172,1.19201541,3646.0,3645.9,3.9017]
[1754318552373,1.0,3646.0,3645.9,3.9017]
[1754318553465,1.252,3647.1,3646.2,0.531]
[1754318553672,2.7433,3647.1,3647.0,4.45002]
[1754318553861,2.9378182,3647.1,3647.0,4.45002]
[1754318554069,1.6879,3647.1,3647.0,4.45002]
[1754318554465,1.252,3646.5,3646.4,0.92043591]
[1754318554663,4.3406,3646.5,3646.4,0.74213591]
[1754318554860,4.3406,3646.5,3646.4,2.5152]
[1754318555065,3.4725,3646.5,3646.4,3.9191]
[1754318555266,4.3406,3646.5,3646.4,3.2419]
[1754318555477,4.3406,3646.2,3646.1,1.4898]
[1754318555671,4.3406,3646.2,3646.1,2.51525]
[1754318555968,3.0518,3646.2,3646.1,3.24195]
[1754318556166,2.7682,3646.2,3646.1,3.24195]
[1754318556370,3.2078,3646.9,3646.0,3.2078]
[1754318556371,1.7975,3646.4,3646.3,1.60782]
[1754318556570,2.2736,3646.4,3646.3,3.24192]
[1754318557167,2.2736,3646.4,3646.3,2.51522]
[1754318557168,3.0836,3646.4,3646.3,2.51522]
[1754318557462,2.2736,3646.3,3646.2,3.24193]
[1754318557767,2.2736,3646.3,3646.2,3.91913]
[1754318558160,0.54839,3646.6,3646.0,3.2078]
[1754318558161,0.6727,3646.1,3646.0,3.2078]
[1754318558364,4.0988,3645.9,3645.8,0.54849]
[1754318558671,4.0988,3645.9,3645.8,1.45589]
[1754318558872,4.0988,3645.9,3645.8,0.9074]
[1754318559172,4.0988,3645.9,3645.8,1.4898]
[1754318559671,3.2888,3645.5,3645.4,2.51534]
[1754318559868,4.0988,3645.5,3645.4,2.51534]
[1754318560370,3.5542,3645.3,3645.2,0.54858]
[1754318560576,4.0404,3645.3,3645.2,0.54858]
[1754318560770,3.2305,3645.3,3645.2,2.53968]
[1754318561071,3.2305,3645.3,3645.2,3.27918]
[1754318561973,0.8099,3645.6,3645.1,3.2078]
[1754318561974,4.58899,3645.2,3645.1,3.2078]
[1754318562473,4.58899,3645.2,3645.1,4.0977]
[1754318562670,0.6792,3645.2,3645.1,5.1989]
[1754318562867,3.2305,3645.2,3645.1,7.5971]
[1754318564277,0.6792,3645.2,3645.1,7.5971]
[1754318564573,2.6846,3645.5,3645.4,1.7418]
[1754318564770,3.2305,3645.5,3645.4,4.93786]
[1754318566270,3.2305,3645.9,3645.8,1.1012]
[1754318566474,3.2305,3645.9,3645.8,2.7306]
[1754318566976,4.0404,3645.9,3645.8,1.9911]
[1754318567368,3.2305,3645.9,3645.8,2.6317]
[1754318567679,3.2305,3645.9,3645.8,4.3893]
[1754318567975,3.2305,3645.9,3645.8,4.9378]
[1754318568182,0.5831,3645.9,3645.8,4.9378]
[1754318568480,6.4383,3646.0,3645.9,4.3893]
[1754318568772,1.6153,3646.0,3645.9,4.3893]
[1754318568968,3.2305,3646.1,3646.0,4.93777]
[1754318569369,3.2305,3646.1,3646.0,3.91967]
[1754318569568,4.0404,3646.1,3646.0,3.27907]
[1754318569973,4.0404,3646.1,3646.0,1.43837]
[1754318570178,4.0404,3646.1,3646.0,2.05117]
[1754318570377,3.2305,3646.1,3646.0,2.53957]
[1754318571577,4.0404,3646.1,3646.0,2.53957]
[1754318572280,3.2305,3646.1,3646.0,4.93777]
[1754318573178,3.2305,3646.1,3646.0,3.3712]
[1754318573379,4.0404,3646.1,3646.0,0.8899]
[1754318573575,4.0404,3646.1,3645.7,1.56661]
[1754318573775,3.2305,3645.8,3645.7,4.29721]
[1754318574373,3.2305,3645.8,3645.7,4.93781]
[1754318576079,3.2305,3645.8,3645.7,3.91971]
[1754318576674,3.2305,3645.8,3645.7,4.93781]
[1754318577574,4.0404,3645.8,3645.7,3.3712]
[1754318577774,0.54851,3645.7,3645.5,0.54854]
[1754318578072,3.2305,3645.6,3645.5,3.91974]
[1754318578276,3.2305,3645.6,3645.5,4.93784]
[1754318578983,2.1984,3645.6,3645.5,4.93784]
[1754318579179,2.1984,3645.8,3645.7,2.29031]
[1754318579481,3.2305,3645.8,3645.7,2.05121]
[1754318579682,3.2305,3645.8,3645.7,1.9911]
[1754318579985,4.0404,3645.8,3645.7,0.8899]
[1754318580178,0.54851,3645.7,3645.3,0.54856]
[1754318580379,4.0404,3645.8,3645.3,0.54856]
[1754318580380,2.6846,3645.4,3645.3,3.91976]
[1754318580685,1.37147,3645.3,3644.8,0.54864]
[1754318580873,0.54857,3645.4,3645.0,4.3893]
[1754318581184,2.29707,3645.4,3645.3,4.3893]
[1754318581375,19.9999,3645.7,3645.3,4.3893]
[1754318581589,3.96874446,3645.6,3645.5,4.3893]
[1754318581875,0.18970446,3645.6,3645.5,4.3893]
[1754318582080,0.86890446,3645.9,3645.8,2.2903]
[1754318582382,0.86890446,3645.9,3645.8,4.9378]
[1754318582685,0.18970446,3646.0,3645.9,4.3893]
[1754318583072,0.86890446,3646.0,3645.9,4.3893]
[1754318583278,1.80500446,3646.0,3645.9,4.3893]
[1754318583780,0.18970446,3646.0,3645.9,4.3893]
[1754318583979,0.18970446,3646.2,3646.1,4.3893]
[1754318584181,1.80500446,3646.2,3646.1,4.3893]
[1754318584487,3.42020446,3646.2,3646.1,1.9911]
[1754318585078,4.23010446,3646.2,3646.1,1.9911]
[1754318585385,3.42020446,3646.2,3646.1,4.3893]
[1754318585785,3.42020446,3646.2,3646.1,3.3712]
[1754318586683,4.23010446,3646.2,3646.1,1.9911]
[1754318586886,3.2305,3646.0,3645.9,1.5027]
[1754318587087,3.2305,3645.8,3645.7,1.16131]
[1754318587383,3.2305,3645.8,3645.7,3.18021]
[1754318587584,3.779,3645.8,3645.7,2.53961]
[1754318587781,3.4197181,3645.8,3645.7,3.27911]
[1754318588376,3.4197181,3645.8,3645.7,3.91971]
[1754318588586,0.54854,3645.5,3645.4,1.56665]
[1754318588888,3.2305,3645.5,3645.4,4.29725]
[1754318589080,3.2305,3645.5,3645.4,2.7306]
[1754318589290,3.41978341,3645.5,3645.4,2.7306]
[1754318589787,3.41978341,3645.5,3645.4,3.3712]
[1754318589989,3.41978341,3645.5,3645.4,4.3893]
[1754318590291,0.9588,3646.2,3645.7,0.943]
[1754318590500,2.28154,3646.2,3646.1,1.1127]
[1754318590790,2.28154,3646.2,3645.4,0.8764]
[1754318590791,1.73585991,3646.2,3645.4,0.8764]
[1754318590990,3.2116,3645.5,3645.4,4.87516]
[1754318591283,3.2116,3645.5,3645.4,3.27026]
[1754318591488,3.2116,3645.5,3645.4,3.93216]
[1754318592487,2.2028,3645.5,3645.4,4.87516]
[1754318592990,2.2028,3645.5,3645.4,3.93216]
[1754318593192,3.76016,3645.4,3644.9,0.943]
[1754318593488,3.2116,3645.3,3645.2,2.53769]
[1754318593690,3.40095083,3645.3,3645.2,2.53769]
[1754318593885,3.40095083,3645.3,3645.2,1.9891]
[1754318594289,3.2116,3645.0,3644.9,3.93222]
[1754318594495,2.2028,3645.0,3644.9,3.93222]
[1754318594788,3.2116,3645.0,3644.8,3.2078]
[1754318594986,4.75721256,3644.9,3644.8,5.1969]
[1754318595291,4.75721256,3644.9,3644.8,1.9891]
[1754318595496,3.40098256,3644.9,3644.8,2.7217]
[1754318596186,3.40098256,3644.9,3644.8,3.3836]
[1754318597090,2.88128256,3644.9,3644.8,4.3266]
[1754318597592,3.40098256,3644.9,3644.8,4.3266]
[1754318598290,1.50745,3644.8,3644.6,0.54867]
[1754318598486,0.5761,3645.0,3644.9,1.17833]
[1754318598692,2.88103444,3645.0,3644.9,2.32323]
[1754318598893,2.88103444,3645.0,3644.9,1.7746]
[1754318599193,3.40073444,3645.0,3644.9,3.3836]
[1754318599398,4.20833444,3645.0,3644.9,3.3836]
[1754318599594,3.2116,3644.8,3644.7,3.05586]
[1754318599897,3.2116,3644.8,3644.7,3.99886]
[1754318600096,3.2116,3644.8,3644.7,4.87526]
[1754318601494,3.0104,3644.5,3644.4,0.8764]
[1754318601798,4.0192,3644.5,3644.4,1.9891]
[1754318601995,1.55746,3644.8,3644.7,0.483]
[1754318602296,3.60906,3644.8,3644.7,0.8764]
[1754318602498,2.28181,3644.4,3644.3,7.20672]
[1754318602698,3.2116,3644.4,3644.3,7.20672]
[1754318603095,3.2116,3644.4,3644.3,8.08312]
[1754318604295,3.2116,3644.4,3644.3,6.47822]
[1754318604493,3.2116,3644.4,3644.3,7.14012]
[1754318604692,3.2116,3644.4,3644.3,8.08312]
[1754318606199,0.6679,3644.4,3644.3,8.08312]
[1754318606503,3.76028,3644.7,3644.6,4.87528]
[1754318606699,3.75642,3645.1,3644.9,2.32322]
[1754318606895,1.7331,3645.2,3645.1,0.5486]
[1754318607103,3.40049163,3645.2,3645.1,1.9109]
[1754318607405,3.40049163,3645.2,3645.1,3.9322]
[1754318607693,0.18889163,3645.2,3645.1,4.8752]
[1754318607898,0.18889163,3645.4,3645.3,4.87517]
[1754318608095,0.18889163,3645.6,3645.5,4.87514]
[1754318608598,4.20809163,3645.6,3645.5,0.8764]
[1754318608799,2.28169,3645.3,3645.2,2.7217]
[1754318608997,1.7331,3645.3,3645.2,2.7217]
[1754318609506,3.2116,3645.3,3645.2,2.7217]
[1754318609804,3.94831865,3645.3,3645.2,2.7217]
[1754318609988,3.2116,3645.3,3645.2,4.3266]
[1754318610299,3.2116,3644.7,3644.6,3.4502]
[1754318610500,21.71268,3645.3,3645.2,0.6297]
[1754318610699,23.44595188,3645.3,3645.2,0.6297]
[1754318611003,22.70922942,3645.3,3645.2,1.5061]
[1754318611202,24.18772942,3645.3,3645.2,1.5061]
[1754318611505,24.18772942,3645.3,3645.2,0.8764]
[1754318611700,0.6679,3644.9,3644.8,0.54864]
[1754318611901,3.2116,3644.9,3644.8,3.93224]
[1754318612101,3.2116,3644.9,3644.8,4.87524]
[1754318612503,3.2116,3644.9,3644.8,4.3266]
[1754318613798,3.2116,3644.9,3644.8,3.3836]
[1754318614903,3.2116,3644.9,3644.8,4.3266]
[1754318615292,3.39957385,3644.9,3644.8,4.3266]
[1754318615904,3.39957385,3644.9,3643.8,3.75659]
[1754318615905,0.9588,3644.3,3643.8,3.75659]
[1754318616097,1.244,3643.6,3643.5,4.3266]
[1754318616304,2.7026,3643.6,3643.5,4.3266]
[1754318617002,3.1917,3643.6,3643.5,4.3266]
[1754318617306,3.1917,3643.6,3643.5,3.3836]
[1754318618299,0.9588,3643.6,3643.2,3.75669]
[1754318618608,1.6267,3643.3,3643.2,7.20689]
[1754318618901,1.6267,3643.3,3643.2,7.5344]
[1754318619402,1.6267,3643.3,3643.2,4.3266]
[1754318619918,3.1917,3643.3,3643.2,4.3266]
[1754318620101,2.10741,3643.7,3643.6,1.7042]
[1754318620306,2.69021,3643.7,3643.6,4.1743]
[1754318620497,3.65321,3643.7,3643.6,4.1743]
[1754318620702,3.65321,3643.7,3643.6,2.6121]
[1754318620900,2.68871,3643.1,3643.0,3.495]
[1754318621103,2.1398,3643.1,3643.0,4.1743]
[1754318622204,0.54889,3643.3,3643.0,4.1743]
[1754318622504,1.557,3643.3,3643.2,4.1743]
[1754318623011,2.1398,3643.3,3643.2,4.1743]
[1754318623208,2.6336,3643.3,3643.2,4.1743]
[1754318623710,3.1028,3643.3,3643.2,4.1743]
[1754318623910,2.20068,3643.3,3643.2,1.9328]
[1754318624103,2.1398,3643.3,3643.2,4.1743]
[1754318624409,3.1028,3643.3,3643.2,2.6121]
[1754318624710,3.65172,3643.0,3642.9,1.8613101]
[1754318624901,3.65172,3643.0,3642.4,3.2078]
[1754318624902,6.85952,3643.0,3642.4,0.8731]
[1754318625100,2.1398,3641.9,3641.8,1.0597]
[1754318625411,3.1028,3641.9,3641.8,3.3012]
[1754318625709,3.1028,3641.9,3641.8,3.2566]
[1754318625914,3.1028,3641.9,3641.8,4.1743]
[1754318626206,3.1028,3641.7,3641.6,4.7602]
[1754318626404,0.9572,3642.0,3641.7,2.10152]
[1754318626605,3.1028,3642.0,3641.9,4.1743]
[1754318627301,2.609,3641.6,3641.5,1.7042]
[1754318627509,1.557,3641.6,3641.5,4.1743]
[1754318627817,1.557,3642.0,3641.9,4.1743]
[1754318628007,0.5998,3642.0,3641.9,4.1743]
[1754318628210,1.1488,3642.5,3642.4,0.6445]
[1754318628411,1.34178769,3642.5,3642.4,3.2566]
[1754318628608,3.1028,3642.5,3642.4,2.6121]
[1754318628806,1.6518,3642.2,3642.1,2.6121]
[1754318629010,1.6518,3641.9,3641.8,4.1743]
[1754318629211,3.1028,3641.9,3641.8,4.1743]
[1754318630520,1.451,3641.9,3641.2,3.2078]
[1754318630709,2.1456,3641.9,3641.8,1.7042]
[1754318631014,2.1456,3641.9,3641.8,4.1743]
[1754318631212,3.1028,3641.9,3641.8,4.1743]
[1754318631402,3.9135,3641.9,3641.8,1.9328]
[1754318631606,3.1028,3641.9,3641.8,1.9328]
[1754318631808,0.5998,3641.9,3641.8,4.1743]
[1754318632005,3.2078,3642.0,3641.9,4.1743]
[1754318632410,3.2078,3642.0,3641.6,0.6793]
[1754318632411,0.4938,3641.9,3641.6,0.6793]
[1754318632608,2.0508,3641.9,3641.8,1.2362]
[1754318632908,2.6336,3641.9,3641.8,4.1743]
[1754318633211,3.1028,3641.9,3641.8,1.9328]
[1754318633806,3.1028,3641.9,3641.8,2.6121]
[1754318634007,2.609,3641.9,3641.8,4.1743]
[1754318634406,19.424,3642.4,3642.2,1.7042]
[1754318634610,19.424,3642.4,3642.2,4.1743]
[1754318634611,1.557,3642.3,3642.2,4.1743]
[1754318634809,3.1028,3642.3,3642.2,0.8731]
[1754318635009,2.609,3642.0,3641.9,1.9328]
[1754318635208,1.50624,3642.2,3641.7,0.54911]
[1754318635511,2.6336,3641.8,3641.7,4.1743]
[1754318635819,3.1028,3641.8,3641.7,4.1743]
[1754318636109,3.1028,3641.8,3641.7,1.9328]
[1754318636302,3.6519,3641.8,3641.7,3.2566]
[1754318636510,3.6519,3641.8,3641.7,1.9328]
[1754318636714,0.54913,3641.7,3641.4,1.5524]
[1754318636918,2.6336,3641.5,3641.4,4.1743]
[1754318637410,1.6518,3641.3,3641.2,2.93269]
[1754318637715,1.557,3641.3,3641.2,3.85039]
[1754318637913,0.5998,3641.5,3641.4,1.78536]
[1754318638215,0.5998,3641.5,3641.4,4.72346]
[1754318639016,2.1398,3641.5,3641.4,4.1743]
[1754318639207,3.1028,3641.5,3641.4,2.6121]
[1754318640709,0.54916,3641.4,3641.1,0.5492]
[1754318640910,0.54916,3641.4,3640.7,4.0809]
[1754318640911,1.1826,3640.9,3640.8,2.1093]
[1754318641220,2.98815096,3640.9,3640.8,3.2566]
[1754318641613,3.1028,3640.4,3640.3,5.68992]
[1754318641816,3.94564526,3640.4,3640.3,7.93142]
[1754318642116,0.84284526,3640.4,3640.3,7.93142]
[1754318642312,2.98264526,3640.4,3640.3,7.93142]
[1754318642616,3.94564526,3640.4,3640.3,5.1406]
[1754318642817,3.94564526,3640.4,3640.3,7.3821]
[1754318643212,1.37333,3640.3,3638.9,0.54953]
[1754318643416,1.1826,3639.7,3639.6,0.5917]
[1754318643631,1.1493,3639.2,3639.1,0.8731]
[1754318643811,3.94564526,3639.2,3639.1,2.1441]
[1754318644007,1.052,3638.9,3638.8,0.8731]
[1754318644326,0.54961,3638.5,3638.0,0.9177]
[1754318644516,19.423,3638.4,3638.1,1.46735]
[1754318644826,0.9572,3638.8,3638.5,0.54959]
[1754318645015,0.84317804,3638.7,3638.5,1.4673]
[1754318645312,2.00063,3638.3,3638.2,0.52413699]
[1754318645522,2.00063,3638.3,3637.5,0.9177]
[1754318645523,0.54971,3637.8,3637.5,0.9177]
[1754318645718,3.2078,3637.6,3637.2,0.5498]
[1754318645922,3.2078,3637.6,3637.4,2.4701]
[1754318646109,3.2078,3637.6,3636.7,3.2078]
[1754318646110,0.84304998,3637.5,3637.1,3.7576]
[1754318646316,0.9572,3637.3,3637.0,1.597]
[1754318646620,0.84304998,3637.2,3637.1,2.4701]
[1754318648825,3.2078,3637.7,3637.6,3.01984]
[1754318649123,5.13629917,3638.2,3638.1,2.4701]
[1754318649425,20.39929917,3638.3,3638.2,2.4701]
[1754318649921,0.97129917,3638.6,3638.3,0.54963]
[1754318650121,0.97129917,3638.5,3638.1,0.54964]
[1754318650425,1.6465,3638.3,3638.2,2.5663]
[1754318650622,0.97129917,3638.6,3638.5,3.1159]
[1754318650837,0.97129917,3638.7,3638.6,1.8496]
[1754318651023,41.01094875,3639.2,3638.6,3.75738]
[1754318651024,0.47494875,3638.8,3638.6,3.75738]
[1754318651223,0.47494875,3638.8,3638.7,2.57577]
[1754318651224,0.97477863,3638.8,3638.7,2.57577]
[1754318651421,0.54948,3639.3,3639.1,1.6508]
[1754318651619,21.0785,3639.4,3639.3,0.9341]
[1754318651818,0.54956,3638.8,3638.3,0.9341]
[1754318652020,1.23208,3638.6,3638.2,0.9341]
[1754318652321,3.2078,3639.0,3638.3,0.54963]
[1754318652524,0.97462126,3639.2,3638.1,3.2078]
[1754318652725,0.6825,3638.4,3637.8,0.7167]
[1754318652922,0.8826,3638.2,3637.7,0.54972]
[1754318653224,0.964,3638.0,3637.7,0.92512]
[1754318653425,0.964,3637.9,3637.8,0.3754]
[1754318653817,0.964,3638.3,3638.2,0.54964]
[1754318654027,0.964,3638.1,3638.0,0.9341]
[1754318654324,1.6465,3637.8,3637.7,1.6508]
[1754318654520,1.51366,3638.1,3637.9,0.3754]
[1754318654726,0.964,3638.0,3637.9,2.0262]
[1754318655025,3.2078,3638.3,3638.2,1.6508]
[1754318655026,4.72143,3638.3,3638.2,1.6508]
[1754318655328,3.2078,3638.3,3638.2,2.0262]
[1754318655822,0.97462126,3638.6,3638.5,1.8591]
[1754318656021,0.54957,3638.8,3638.3,0.9341]
[1754318656325,0.02635338,3638.5,3638.4,1.3095]
[1754318656528,0.964,3639.3,3639.0,0.54952]
[1754318656724,0.54949,3639.2,3638.9,4.1419]
[1754318656927,2.5291,3639.1,3639.0,2.20032]
[1754318657525,3.07861,3639.1,3639.0,1.6508]
[1754318657720,3.07861,3639.1,3638.9,3.2078]
[1754318657923,1.5651,3638.6,3638.5,1.6508]
[1754318658126,0.54961,3638.4,3638.2,0.9341]
[1754318658321,1.6465,3638.2,3638.1,1.26634]
[1754318658530,2.5291,3638.2,3638.1,0.7167]
[1754318658729,3.07876,3638.2,3637.9,1.48378]
[1754318659027,1.5651,3638.1,3637.7,0.54971]
[1754318659227,1.5651,3638.0,3637.7,0.3754]
[1754318659425,0.54968,3638.0,3637.7,0.54971]
[1754318659625,2.11478,3638.0,3637.7,0.92511]
[1754318659828,0.964,3637.8,3637.7,0.92511]
[1754318660030,0.54968,3638.0,3637.8,0.54969]
[1754318660233,1.6465,3638.2,3637.8,0.9341]
[1754318660524,0.54972,3637.7,3637.6,3.9245]
[1754318660729,3.07885,3637.6,3637.4,3.2078]
[1754318660929,1.5651,3637.5,3637.4,3.2078]
[1754318661127,0.54977,3637.4,3637.1,0.54981]
[1754318661323,0.54977,3637.4,3637.3,1.6508]
[1754318661324,2.5291,3637.4,3637.3,1.6508]
[1754318661527,1.74966043,3637.4,3637.3,2.0262]
[1754318661730,0.78566043,3637.4,3637.3,2.0262]
[1754318661923,1.74966043,3637.4,3637.3,1.6508]
[1754318662124,1.74966043,3637.4,3636.9,4.19764039]
[1754318662125,0.78566043,3637.4,3636.9,4.19764039]
[1754318662326,2.5291,3637.2,3636.9,4.19764039]
[1754318662527,1.74966043,3637.1,3637.0,2.20062]
[1754318662725,1.74966043,3637.1,3637.0,2.57602]
[1754318662930,1.74966043,3637.1,3637.0,1.6508]
[1754318663231,0.78566043,3637.1,3637.0,2.0262]
[1754318664322,0.04916043,3637.1,3637.0,2.0262]
[1754318664528,3.2078,3637.8,3637.6,0.54974]
[1754318664726,3.2078,3637.8,3637.7,2.0262]
[1754318664933,41.51459834,3638.9,3638.3,0.9341]
[1754318664934,2.5291,3638.9,3638.3,0.9341]
[1754318665274,3.2078,3639.5,3638.1,0.54966]
[1754318665275,0.18153289,3638.8,3638.7,0.3754]
[1754318665423,0.18153289,3639.2,3638.9,2.0262]
[1754318665624,0.18153289,3639.1,3639.0,2.0262]
[1754318665830,0.8826,3639.8,3639.2,2.0262]
[1754318665831,0.18153289,3639.3,3639.2,2.0262]
[1754318666039,0.18153289,3639.3,3639.2,5.234]
[1754318666325,0.22124759,3639.9,3639.8,2.5756]
[1754318666527,3.2078,3640.0,3639.8,0.95377204]
[1754318667121,3.2078,3640.0,3639.9,2.0262]
[1754318667528,3.2078,3640.0,3639.8,0.95377204]
[1754318667529,0.964,3640.2,3640.0,0.54937]
[1754318667734,0.964,3640.2,3640.1,2.43057204]
[1754318667929,1.5651,3640.4,3640.2,0.54934]
[1754318668128,3.2078,3640.6,3640.4,0.92471]
[1754318668334,1.8466,3640.5,3640.4,1.6508]
[1754318668524,0.964,3640.5,3640.4,2.20011]
[1754318668730,3.2078,3640.6,3640.4,1.32908204]
[1754318668925,3.2078,3640.6,3640.5,0.3754]
[1754318668926,4.1718,3640.6,3640.5,0.3754]
[1754318669330,1.6465,3641.0,3640.8,0.54925]
[1754318669535,2.5291,3640.9,3640.8,0.54925]
[1754318669725,2.11434,3640.9,3640.8,0.40437204]
[1754318669927,2.11434,3640.9,3640.7,1.55517204]
[1754318670132,1.5651,3640.8,3640.7,1.55517204]
[1754318670329,2.5291,3640.8,3640.7,0.62107204]
[1754318670736,2.5291,3640.8,3640.7,1.55517204]
[1754318671132,2.5291,3640.8,3640.7,2.10444204]
[1754318671325,2.5291,3640.8,3640.7,1.55517204]
[1754318671638,1.23177,3640.7,3640.5,0.9341]
[1754318671834,2.5291,3640.6,3640.5,0.9341]
[1754318672036,1.5651,3640.7,3640.2,0.54934]
[1754318672237,1.37309,3641.0,3640.2,0.54934]
[1754318672238,1.5651,3640.5,3640.2,0.54934]
[1754318672436,3.2078,3640.8,3640.2,1.26604]
[1754318672737,0.6825,3640.3,3639.8,0.7167]
[1754318672937,1.8466,3640.1,3640.0,0.54936]
[1754318673235,3.2078,3640.8,3640.0,0.54936]
[1754318673236,0.54935,3640.2,3640.0,1.3095]
[1754318673536,0.5493,3640.5,3640.2,0.54933]
[1754318673837,0.964,3640.3,3640.0,0.54936]
[1754318674031,3.07841,3640.5,3640.0,0.7167]
[1754318674236,2.5291,3640.4,3640.2,0.54933]
[1754318674440,2.5291,3640.7,3640.6,0.54928]
[1754318674736,2.5291,3640.7,3640.6,1.6508]
[1754318675034,2.5291,3639.9,3639.4,0.54946]
[1754318675332,2.5291,3639.9,3638.8,0.54955]
[1754318675333,3.2078,3639.8,3638.8,0.54955]
[1754318675541,0.964,3638.9,3638.8,2.57575]
[1754318675847,0.964,3638.9,3638.8,1.6508]
[1754318676031,2.5291,3638.9,3638.8,1.6508]
[1754318676234,0.964,3639.2,3638.6,3.2078]
[1754318676444,0.75723522,3639.1,3638.7,0.54956]
[1754318676635,0.964,3638.9,3638.8,0.9341]
[1754318676938,0.964,3639.3,3639.1,0.54951]
[1754318677240,4.0904,3639.8,3639.6,0.54942]
[1754318677534,4.0904,3639.8,3639.3,2.20027]
[1754318677535,3.07853,3639.6,3639.3,2.20027]
[1754318677741,1.6465,3639.4,3639.3,2.20027]
[1754318677940,2.5291,3639.4,3639.3,2.20027]
[1754318678137,2.5291,3639.4,3639.3,2.57567]
[1754318678336,2.5291,3639.9,3639.8,0.5494]
[1754318678537,3.28642416,3639.9,3639.8,0.5494]
[1754318678741,0.6825,3639.8,3639.5,3.2078]
[1754318678944,0.54945,3639.6,3639.4,0.54945]
[1754318679240,2.5291,3639.3,3639.2,0.54949]
[1754318679834,0.54946,3639.5,3639.2,0.54949]
[1754318680039,3.07859,3639.3,3639.0,0.54952]
[1754318680238,1.37355,3639.7,3638.9,0.54953]
[1754318680534,2.5847,3639.0,3638.9,0.54953]
[1754318680769,2.5847,3639.0,3638.8,0.54955]
[1754318680941,2.5847,3638.7,3638.5,3.2078]
[1754318681140,0.54953,3639.0,3638.6,0.54957]
[1754318681445,2.5847,3638.7,3638.5,0.54959]
[1754318681639,2.5847,3638.6,3638.5,0.54959]
[1754318681840,2.20249,3638.6,3638.0,4.7907]
[1754318682037,2.5847,3638.6,3638.1,1.5829]
[1754318682238,2.5847,3638.6,3638.5,0.5496]
[1754318683137,0.75808143,3638.6,3638.2,1.5829]
[1754318683340,2.5847,3638.7,3638.6,0.54957]
[1754318683548,3.34278143,3638.7,3638.5,0.54959]
[1754318683746,0.54957,3638.8,3638.5,0.54959]
[1754318683747,3.34278143,3638.6,3638.5,0.54959]
[1754318683943,2.5847,3638.6,3638.5,0.54959]
[1754318684143,0.7137,3638.6,3638.4,0.54961]
[1754318684338,1.6529,3638.5,3638.4,0.54961]
[1754318684539,2.5847,3638.5,3638.4,0.54961]
[1754318685853,2.5847,3638.5,3638.0,3.2078]
[1754318686049,1.6529,3638.4,3638.1,0.54966]
[1754318686252,1.37389,3638.8,3637.9,0.54968]
[1754318686548,0.54967,3638.1,3637.9,0.54968]
[1754318686753,2.5847,3638.1,3637.9,0.54968]
[1754318686948,2.5847,3638.0,3637.9,0.54968]
[1754318687343,2.5847,3638.0,3637.9,2.13258]
[1754318687754,0.9318,3638.0,3637.9,2.49418]
[1754318687950,2.5847,3638.0,3637.9,0.54968]
[1754318688159,2.5847,3638.0,3637.8,0.5497]
[1754318688344,0.9392,3637.9,3637.8,0.5497]
[1754318688547,2.5847,3637.9,3637.8,0.5497]
[1754318688750,2.5847,3637.9,3637.8,1.2401]
[1754318688958,2.5847,3637.9,3637.8,2.1326]
[1754318689147,2.5847,3637.9,3637.8,0.5497]
[1754318689554,2.5847,3637.9,3637.8,1.2401]
[1754318689754,2.5847,3637.9,3637.8,2.1326]
[1754318690150,1.6529,3638.3,3638.2,0.54964]
[1754318690550,1.6529,3638.3,3638.1,0.54965]
[1754318690756,1.6529,3638.3,3638.2,1.5829]
[1754318690960,2.5847,3638.2,3638.1,0.54965]
[1754318691161,0.54966,3638.1,3638.0,0.54967]
[1754318691357,0.54966,3638.1,3637.7,1.9445]
[1754318691358,2.5847,3637.8,3637.7,0.54972]
[1754318691850,2.5847,3638.3,3638.1,0.54965]